lending/lending_fUSD_20240124
["ID","MTS","AMOUNT","RATE_DAILY","PERIOD"]
[312599977,1706054404560,203.0,0.00021169,2]
[312599978,1706054453401,640.0,0.00021958,2]
[312599979,1706054546231,2016.28,0.00021934,2]
[312599980,1706054550988,250.0,0.00021934,2]
[312599981,1706054594190,2000.0,0.00021967,2]
[312599982,1706054621305,9266.71,0.00021992,2]
[312599983,1706054676174,344.36,0.00020231,2]
[312599985,1706054931797,181.2021,0.0002196,2]
[312600016,1706055031745,-299.84,0.0002205,2]
[312600017,1706055031807,-281.63740935,0.0002205,2]
[312600018,1706055031819,-418.52259065,0.0002205,2]
[312600019,1706055031829,-488.0,0.00022051,2]
[312600020,1706055031838,-527.41,0.00022051,2]
[312600021,1706055031847,-248.93784765,0.0002206,2]
[312600022,1706055031860,-600.40807037,0.0002206,2]
[312600023,1706055031873,-98.17408198,0.0002206,2]
[312600024,1706055031883,-250.0,0.00022092,2]
[312600025,1706055031894,-1333.19880575,0.000223,2]
[312600026,1706055031903,-10.8928337,0.00022318,2]
[312600027,1706055031915,-167.4071663,0.00022318,2]
[312600028,1706055031925,-344.36,0.00022495,2]
[312600029,1706055031934,-152.57758023,0.00022518,2]
[312600030,1706055031948,-178.3,0.00022705,2]
[312600031,1706055031957,-298.44,0.00022705,18]
[312600032,1706055031967,-499.99,0.00022705,2]
[312600033,1706055031978,-150.0,0.00022769,2]
[312600034,1706055031990,-2198.82525347,0.0002277,2]
[312600035,1706055032003,-2232.62973941,0.0002277,2]
[312600036,1706055032016,-1270.173871,0.0002277,2]
[312600037,1706055032033,-381.68827467,0.0002277,2]
[312600038,1706055032049,-1863.68286145,0.0002277,2]
[312600039,1706055032058,-3008.6825,0.000228,2]
[312600040,1706055032068,-13259.18,0.000228,2]
[312600041,1706055032077,-4460.20725268,0.000228,2]
[312600042,1706055032086,-164.45,0.00022839,2]
[312600043,1706055032096,-152.5775801,0.00022869,2]
[312600044,1706055032105,-13818.86788121,0.00022897,2]
[312600045,1706055032115,-4284.33471294,0.00022898,2]
[312600046,1706055032124,-255.70975812,0.00022898,2]
[312600047,1706055032133,-528.25706111,0.00022898,2]
[312600048,1706055032142,-435.21804576,0.00022898,2]
[312600049,1706055032151,-5210.7899,0.00022898,2]
[312600050,1706055032161,-1494.4883,0.000229,2]
[312600051,1706055032170,-500.0,0.000229,2]
[312600052,1706055032179,-585.4905,0.000229,2]
[312600053,1706055032191,-13415.69015585,0.000229,2]
[312600054,1706055032234,-279.69657276,0.000229,2]
[312600079,1706055037651,-398.93,0.000229,2]
[312600084,1706055037715,-1201.7988,0.000229,2]
[312600086,1706055037743,-7976.5933791,0.000229,2]
[312600088,1706055037755,-803.82,0.000229,2]
[312600089,1706055037766,-2032.41972289,0.000229,2]
[312600090,1706055037782,-8005.5463694,0.000229,2]
[312600091,1706055037791,-4352.40583136,0.000229,2]
[312600092,1706055037803,-3523.05066864,0.000229,2]
[312600093,1706055037813,-4489.20999765,0.000229,2]
[312600094,1706055037822,-150.5017185,0.000229,2]
[312600095,1706055037831,-5000.0,0.000229,2]
[312600096,1706055037840,-188.13113695,0.000229,2]
[312600097,1706055037850,-419.65429874,0.00022987,2]
[312600098,1706055037859,-197.10559229,0.0002299,2]
[312600099,1706055037868,-504.21645281,0.00022998,2]
[312600100,1706055037877,-413.38196027,0.00022999,2]
[312600101,1706055037886,-2572.46263547,0.00022999,2]
[312600102,1706055037895,-143054.41965985,0.00023,2]
[312600103,1706055037923,-2475.66949071,0.00023,2]
[312600104,1706055037934,-6037.62871272,0.00023,2]
[312600105,1706055037947,-40907.81699032,0.00023,2]
[312600106,1706055037958,-37757.96348169,0.00023,2]
[312600107,1706055037968,-5000.0,0.00023,2]
[312600108,1706055037978,-68248.59415071,0.00023,2]
[312600110,1706055038049,-295.69147625,0.00023,2]
[312600112,1706055038060,-310.51257539,0.00023,2]
[312600114,1706055038071,-804.84838118,0.00023,2]
[312600115,1706055038082,-741.27723955,0.00023,2]
[312600116,1706055038092,-420.8888349,0.00023,2]
[312600117,1706055038111,-1697.76078562,0.00023,2]
[312600120,1706055038122,-953.33214397,0.00023,2]
[312600128,1706055038236,-2073.47326034,0.00023,2]
[312600129,1706055038247,-16370.34689839,0.00023,2]
[312600130,1706055038259,-4976.59851584,0.00023,2]
[312600131,1706055038270,-349.18887466,0.00023,2]
[312600153,1706055040170,-7197.09099069,0.00023,2]
[312600166,1706055040285,-3795.59965843,0.00023,2]
[312600168,1706055040297,-717.39880014,0.00023,2]
[312600175,1706055040356,-549.5552,0.00023,2]
[312600249,1706055042978,-1999.4,0.00023,2]
[312600300,1706055045878,-2079.45,0.00023,2]
[312600301,1706055045901,-585.49045393,0.00023,2]
[312600302,1706055045914,-130100.49904228,0.00023,2]
[312600303,1706055045926,-80976.43611482,0.00023,2]
[312600304,1706055045955,-457.18156015,0.00023,2]
[312600305,1706055045966,-775.80915422,0.00023,2]
[312600306,1706055045977,-2396.09757678,0.00023,2]
[312600307,1706055045988,-4140.69921711,0.00023,2]
[312600308,1706055046015,-962.75,0.00023,2]
[312600621,1706055054400,307.11974338,0.0002196,2]
[312600622,1706055181801,309.92,0.00020849,2]
[312600623,1706055454364,203.0,0.00021699,2]
[312600624,1706055632396,1014.87,0.00021888,2]
[312600625,1706055650422,294.42,0.00019977,2]
[312600626,1706055677627,5456.05,0.00021807,2]
[312600627,1706055793357,263.7,0.00021827,2]
[312600628,1706055834546,390.4,0.00021885,2]
[312600629,1706055838810,250.0,0.0002192,2]
[312600630,1706055866333,200.0,0.00021884,2]
[312600631,1706055941800,13852.6252995,0.00021892,2]
[312600632,1706056079258,293.02,0.00019913,2]
[312600649,1706056231982,-1000.0,0.00021848,2]
[312600650,1706056231992,-500.0,0.00021849,2]
[312600651,1706056232002,-5602.6647005,0.00021892,2]
[312600652,1706056232011,-2387.68800408,0.00021933,2]
[312600653,1706056232068,-472.96270286,0.00021933,2]
[312600654,1706056232079,-391.9015,0.00021933,2]
[312600655,1706056232116,-16032.59599306,0.00021933,2]
[312600656,1706056232125,-248.73,0.00021936,2]
[312600657,1706056232136,-150.0,0.00021984,2]
[312600658,1706056232145,-32876.85047795,0.00021984,2]
[312600659,1706056232155,-845.72,0.00021985,2]
[312600660,1706056232164,-173.44,0.00022097,2]
[312600661,1706056232174,-293.02,0.00022177,2]
[312600662,1706056232183,-500.0,0.0002221,2]
[312600663,1706056232192,-405.16,0.0002221,2]
[312600664,1706056232202,-499.99,0.00022241,2]
[312600665,1706056232210,-1634.71,0.00022241,2]
[312600666,1706056232220,-1693.45,0.00022245,2]
[312600667,1706056232229,-609.6,0.00022302,2]
[312600668,1706056232239,-346.37,0.00022569,2]
[312600669,1706056232248,-1000.0,0.00022668,2]
[312600670,1706056232257,-173.44,0.00022673,2]
[312600671,1706056232267,-711.06346558,0.00022769,3]
[312600672,1706056232277,-22622.38392936,0.00022769,2]
[312600673,1706056232286,-1572.5168,0.000228,2]
[312600674,1706056232297,-200.0,0.00022816,2]
[312600675,1706056232307,-825.780954,0.00022816,2]
[312600676,1706056232316,-157.01830547,0.00022883,2]
[312600677,1706056232325,-270.03425655,0.00022899,2]
[312600678,1706056232334,-240884.392,0.000229,2]
[312600679,1706056232343,-188.13113694,0.000229,2]
[312600680,1706056232352,-328.05303854,0.00022987,2]
[312600681,1706056232362,-172.1165186,0.0002299,2]
[312600682,1706056232371,-766.28397364,0.00022998,2]
[312600683,1706056232382,-655.32015604,0.00022998,2]
[312600684,1706056232392,-281.22731703,0.00022998,2]
[312600685,1706056232401,-295.34208328,0.00022998,2]
[312600686,1706056232410,-247.96718941,0.00022998,2]
[312600687,1706056232419,-163.68662907,0.00022998,2]
[312600688,1706056232428,-2669.66702326,0.00022998,2]
[312600689,1706056232437,-280.29843152,0.00022998,2]
[312600690,1706056232447,-540.90072547,0.00022998,2]
[312600691,1706056232456,-155.39611711,0.00022998,2]
[312600692,1706056232465,-174.68216783,0.00022998,2]
[312600693,1706056232475,-155.0,0.00022998,2]
[312600694,1706056232484,-354.34701306,0.00022998,2]
[312600695,1706056232494,-171.43055672,0.00022998,2]
[312600696,1706056232503,-3986.51916238,0.00022998,2]
[312600697,1706056232512,-206.79487175,0.00022998,2]
[312600698,1706056232522,-16583.68994891,0.00022998,2]
[312600699,1706056232531,-3525.81520156,0.00022998,2]
[312600700,1706056232541,-202.72914679,0.00022998,2]
[312600701,1706056232550,-2318.58071486,0.00022998,2]
[312600702,1706056232559,-529.04001639,0.00022998,2]
[312600703,1706056232569,-192.14041212,0.00022998,2]
[312600704,1706056232578,-244.85610876,0.00022998,2]
[312600705,1706056232587,-155.50563666,0.00022998,2]
[312600706,1706056232596,-215.70696346,0.00022998,2]
[312600707,1706056232605,-209.95960961,0.00022998,2]
[312600708,1706056232614,-191.26881862,0.00022998,2]
[312600709,1706056232623,-400.0,0.00022998,2]
[312600710,1706056232634,-233.33697003,0.00022999,2]
[312600711,1706056232643,-194.77429106,0.00022999,2]
[312600712,1706056232651,-6429.79997434,0.00022999,2]
[312600713,1706056232661,-155.0,0.00022999,2]
[312600714,1706056232670,-3723.81989147,0.00022999,2]
[312600715,1706056232680,-554973.65171401,0.00023,2]
[312600716,1706056232689,-151.7836546,0.00023,2]
[312600717,1706056232698,-5000.0,0.00023,2]
[312600718,1706056232707,-252.96,0.00023,2]
[312600719,1706056232716,-150.0,0.00023063,2]
[312600720,1706056232725,-173.44,0.00023249,2]
[312600721,1706056232735,-203.0,0.00023529,2]
[312600722,1706056232744,-845.72,0.00023629,2]
[312600723,1706056232753,-205.21073047,0.00023999,2]
[312600724,1706056232762,-201.31020997,0.00024,2]
[312600725,1706056232771,-167.05,0.00024021,2]
[312600726,1706056232781,-1936.0,0.000241,2]
[312600727,1706056232790,-236.0,0.000241,2]
[312600728,1706056232799,-998.0,0.000241,2]
[312600729,1706056232808,-426.0,0.000241,2]
[312600730,1706056232819,-335.0,0.000241,2]
[312600731,1706056232828,-150.0,0.000241,2]
[312600732,1706056232838,-866.0,0.000241,2]
[312600733,1706056232848,-319.0,0.000241,2]
[312600734,1706056232857,-2999.037,0.000241,2]
[312600735,1706056232867,-2909.0,0.000241,2]
[312600736,1706056232876,-2444.955,0.000241,2]
[312600737,1706056232889,-19726.0,0.000241,2]
[312600738,1706056232898,-2276.0,0.000241,2]
[312600739,1706056232907,-622.469,0.000241,2]
[312600740,1706056232916,-833.0,0.000241,2]
[312600741,1706056232925,-435.386,0.000241,2]
[312600742,1706056232944,-215.0,0.000241,2]
[312600743,1706056232954,-1251.0,0.000241,2]
[312600744,1706056232963,-1233.0,0.000241,2]
[312600745,1706056232972,-167.0,0.00024297,2]
[312600746,1706056232982,-3345.0,0.000243,2]
[312600747,1706056232991,-19862.0,0.000243,2]
[312600748,1706056233000,-4543.75596736,0.00024332,2]
[312600749,1706056233010,-293.02,0.00024441,2]
[312600750,1706056233019,-390.4,0.00024621,2]
[312600751,1706056233028,-250.0,0.00024658,2]
[312600752,1706056233037,-150.0,0.00024658,2]
[312600753,1706056233046,-299.03543318,0.00024658,2]
[312600754,1706056233055,-150.52444454,0.000247,2]
[312600755,1706056233065,-899.0,0.000248,2]
[312600756,1706056233073,-1000.0,0.000248,2]
[312600757,1706056233085,-155.36928115,0.00024866,2]
[312600758,1706056233094,-1585.52059264,0.00025,2]
[312600759,1706056233103,-934.50089976,0.00025,2]
[312600760,1706056233112,-2399.70166215,0.00025,2]
[312600761,1706056233121,-202.21011162,0.00025,2]
[312600762,1706056233132,-303.74458375,0.00025,2]
[312600763,1706056233141,-167.53295169,0.00025,2]
[312600764,1706056233150,-3173.11233936,0.00025,2]
[312600765,1706056233159,-204.14467032,0.00025,2]
[312600766,1706056233168,-450.0,0.00025,3]
[312600767,1706056233178,-609.6,0.0002509,2]
[312600768,1706056233187,-150.52444411,0.00025097,2]
[312600769,1706056233196,-167.0,0.00025099,2]
[312600770,1706056233206,-155.36928115,0.00025189,2]
[312600771,1706056233215,-845.72,0.00025273,2]
[312600772,1706056233224,-5009.30943823,0.00025456,5]
[312600773,1706056233233,-2000.0,0.00025456,3]
[312600774,1706056233243,-274.32520966,0.0002549,2]
[312600775,1706056233252,-150.52444411,0.00025494,2]
[312600776,1706056233261,-155.36928115,0.00025513,2]
[312600777,1706056233270,-4543.75596734,0.00025556,2]
[312600778,1706056233279,-155.36928115,0.00025837,2]
[312600779,1706056233288,-150.52444411,0.00025891,2]
[312600780,1706056233297,-167.0,0.00025901,2]
[312600781,1706056233307,-201.28334269,0.00026,2]
[312600782,1706056233316,-155.36928115,0.00026161,2]
[312600783,1706056233325,-150.52444411,0.00026288,2]
[312600784,1706056233334,-8612.89538757,0.000264,2]
[312600785,1706056233343,-155.36928115,0.00026485,2]
[312600786,1706056233352,-250.0,0.00026555,2]
[312600787,1706056233361,-150.0,0.00026555,2]
[312600788,1706056233370,-286.89393575,0.00026555,2]
[312600789,1706056233379,-150.0,0.00026555,2]
[312600790,1706056233389,-4733.29,0.00026575,2]
[312600791,1706056233403,-24916.26,0.00026575,2]
[312600792,1706056233414,-1000.0,0.00026575,2]
[312600793,1706056233424,-150.52444411,0.00026685,2]
[312600794,1706056233432,-167.0,0.00026703,2]
[312600795,1706056233442,-293.02,0.00026705,2]
[312600796,1706056233451,-4543.75596734,0.00026781,2]
[312600797,1706056233460,-155.36928115,0.00026808,2]
[312600798,1706056233469,-357.35832948,0.00026829,2]
[312600799,1706056233478,-845.72,0.00026917,2]
[312600800,1706056233487,-155.0,0.00027,2]
[312600801,1706056233496,-416.03757758,0.00027,2]
[312600802,1706056233505,-500.0,0.00027,3]
[312600803,1706056233514,-150.52444411,0.00027082,2]
[312600804,1706056233523,-236.0,0.000271,2]
[312600805,1706056233532,-996.0,0.000271,2]
[312600806,1706056233542,-426.0,0.000271,2]
[312600807,1706056233551,-177.069,0.000271,2]
[312600808,1706056233560,-315.864,0.000271,2]
[312600809,1706056233568,-2909.0,0.000271,2]
[312600810,1706056233578,-19726.0,0.000271,2]
[312600811,1706056233587,-2276.0,0.000271,2]
[312600812,1706056233596,-215.0,0.000271,2]
[312600813,1706056233605,-1251.0,0.000271,2]
[312600814,1706056233614,-150.0,0.00027103,2]
[312600815,1706056233623,-150.0,0.00027103,2]
[312600816,1706056233633,-1561.61,0.00027123,2]
[312600817,1706056233642,-155.36928115,0.00027132,2]
[312600818,1706056233651,-5000.0,0.00027297,2]
[312600819,1706056233660,-390.4,0.00027357,2]
[312600820,1706056233669,-80225.31766724,0.00027395,2]
[312600821,1706056233678,-202.25497978,0.00027397,5]
[312600822,1706056233688,-150.0,0.00027397,2]
[312600823,1706056233697,-155.0,0.00027397,2]
[312600824,1706056233707,-150.11,0.00027397,2]
[312600825,1706056233716,-150.0,0.00027397,2]
[312600826,1706056233726,-533.72,0.00027397,2]
[312600827,1706056233735,-28854.97,0.00027397,2]
[312600828,1706056233744,-32209.32,0.00027397,2]
[312600829,1706056233754,-15156.42,0.00027397,2]
[312600830,1706056233763,-177244.05,0.00027397,2]
[312600831,1706056233772,-155.36928115,0.00027456,2]
[312600832,1706056233782,-150.52444411,0.00027479,2]
[312600833,1706056233791,-176.47,0.000275,2]
[312600834,1706056233802,-167.0,0.00027505,2]
[312600835,1706056233811,-1010.4315,0.00027533,2]
[312600836,1706056233823,-15156.42,0.00027556,2]
[312600837,1706056233832,-203.0,0.00027582,8]
[312600838,1706056233841,-533.72,0.00027686,2]
[312600839,1706056233850,-15156.42,0.00027714,2]
[312600840,1706056233861,-15156.42,0.00027872,2]
[312600841,1706056233870,-358.8532195,0.00027874,2]
[312600842,1706056233882,-150.52444411,0.00027876,2]
[312600843,1706056233891,-500.0,0.00027878,2]
[312600844,1706056233902,-500.0,0.00027878,2]
[312600845,1706056233912,-500.0,0.00027878,2]
[312600846,1706056233921,-500.0,0.00027878,2]
[312600847,1706056233930,-500.0,0.00027878,2]
[312600848,1706056233939,-500.0,0.00027878,2]
[312600849,1706056233965,-500.0,0.00027878,2]
[312600850,1706056233975,-500.0,0.00027878,2]
[312600851,1706056233984,-500.0,0.00027878,2]
[312600852,1706056233993,-500.0,0.00027878,2]
[312600853,1706056234003,-500.0,0.00027878,2]
[312600854,1706056234012,-500.0,0.00027878,2]
[312600855,1706056234021,-500.0,0.00027878,2]
[312600856,1706056234030,-500.0,0.00027878,2]
[312600857,1706056234039,-500.0,0.00027878,2]
[312600858,1706056234048,-500.0,0.00027878,2]
[312600859,1706056234057,-500.0,0.00027878,2]
[312600860,1706056234066,-250.0,0.00027878,2]
[312600861,1706056234075,-500.0,0.00027878,2]
[312600862,1706056234085,-500.0,0.00027878,2]
[312600863,1706056234094,-500.0,0.00027878,2]
[312600864,1706056234103,-500.0,0.00027878,2]
[312600865,1706056234113,-500.0,0.00027878,2]
[312600866,1706056234122,-500.0,0.00027878,2]
[312600867,1706056234134,-500.0,0.00027878,2]
[312600868,1706056234144,-500.0,0.00027878,2]
[312600869,1706056234153,-500.0,0.00027878,2]
[312600870,1706056234163,-500.0,0.00027878,2]
[312600871,1706056234173,-500.0,0.00027878,2]
[312600872,1706056234184,-500.0,0.00027878,2]
[312600873,1706056234194,-500.0,0.00027878,2]
[312600874,1706056234204,-500.0,0.00027878,2]
[312600875,1706056234214,-500.0,0.00027878,2]
[312600876,1706056234224,-500.0,0.00027878,2]
[312600877,1706056234233,-500.0,0.00027878,2]
[312600878,1706056234243,-500.0,0.00027878,2]
[312600879,1706056234252,-609.6,0.00027878,2]
[312600880,1706056234262,-151.41324109,0.00027945,2]
[312600881,1706056234271,-533.72,0.00027974,2]
[312600882,1706056234281,-689.47449739,0.00028,2]
[312600883,1706056234291,-930.06062944,0.00028,2]
[312600884,1706056234300,-20418.96853825,0.00028,2]
[312600885,1706056234309,-408.37937077,0.00028,2]
[312600886,1706056234319,-200.0,0.00028,2]
[312600887,1706056234328,-4000.0,0.00028,2]
[312600888,1706056234338,-4543.75596734,0.00028005,2]
[312600889,1706056234347,-15156.42,0.0002803,2]
[312600890,1706056234357,-190.78458152,0.00028048,2]
[312600891,1706056234366,-196.33751794,0.00028162,2]
[312600892,1706056234375,-15156.42,0.00028189,2]
[312600893,1706056234389,-533.72,0.00028262,2]
[312600894,1706056234399,-150.52444411,0.00028273,2]
[312600895,1706056234409,-167.0,0.00028307,2]
[312600896,1706056234418,-15156.42,0.00028347,2]
[312600897,1706056234428,-1268.92708309,0.000284,2]
[312600898,1706056234437,-232.79666439,0.000284,14]
[312600899,1706056234447,-198.93815682,0.000284,2]
[312600900,1706056234456,-426.74249805,0.000284,2]
[312600901,1706056234465,-2896.84361217,0.000284,2]
[312600902,1706056234474,-197900.0,0.00028493,4]
[312600903,1706056234483,-150.0,0.00028499,2]
[312600904,1706056234493,-186.76080788,0.00028499,2]
[312600905,1706056234502,-288061.22212036,0.000285,2]
[312600906,1706056235294,-1926.39142144,0.000285,2]
[312600907,1706056235306,-1824.30627497,0.000285,2]
[312600908,1706056235335,-3029.50150703,0.000285,2]
[312600942,1706056237919,-1233.0,0.000271,2]
[312600943,1706056237928,-181.32,0.000274,2]
[312600944,1706056237938,-181.32,0.000274,2]
[312600945,1706056237947,-181.32,0.000274,2]
[312600946,1706056237956,-181.32,0.000274,2]
[312600947,1706056237965,-181.32,0.000274,2]
[312600948,1706056237974,-181.32,0.000274,2]
[312600949,1706056237984,-181.32,0.000274,2]
[312600950,1706056237993,-500.0,0.00027878,2]
[312600951,1706056238002,-500.0,0.00027878,2]
[312600952,1706056238012,-500.0,0.00027878,2]
[312600953,1706056238021,-500.0,0.00027878,2]
[312600954,1706056238031,-500.0,0.00027878,2]
[312600955,1706056238040,-500.0,0.00027878,2]
[312600956,1706056238049,-500.0,0.00027878,2]
[312600957,1706056238058,-500.0,0.00027878,2]
[312600958,1706056238067,-500.0,0.00027878,2]
[312600959,1706056238076,-500.0,0.00027878,2]
[312600960,1706056238085,-500.0,0.00027878,2]
[312600961,1706056238094,-500.0,0.00027878,2]
[312600962,1706056238103,-500.0,0.00027878,2]
[312600963,1706056238112,-500.0,0.00027878,2]
[312600964,1706056238121,-500.0,0.00027878,2]
[312600965,1706056238132,-500.0,0.00027878,2]
[312600966,1706056238141,-181.32,0.00028483,2]
[312600968,1706056238150,-181.32,0.0002849,2]
[312600970,1706056238159,-181.32,0.0002849,2]
[312600972,1706056238168,-6600.92602435,0.000285,7]
[312600974,1706056238179,-3883.2410432,0.000285,7]
[312600977,1706056240912,-500.0,0.00027878,2]
[312600978,1706056240923,-460.29331548,0.00027878,2]
[312601055,1706056243005,-39.70668452,0.00027878,2]
[312601056,1706056243014,-500.0,0.00027878,2]
[312601057,1706056243023,-500.0,0.00027878,2]
[312601058,1706056243033,-500.0,0.00027878,2]
[312601059,1706056243042,-500.0,0.00027878,2]
[312601060,1706056243052,-500.0,0.00027878,2]
[312601061,1706056243061,-500.0,0.00027878,2]
[312601062,1706056243071,-92.45989357,0.00027878,2]
[312601063,1706056243083,-407.54010643,0.00027878,2]
[312601064,1706056243093,-500.0,0.00027878,2]
[312601065,1706056243102,-500.0,0.00027878,2]
[312601066,1706056243112,-166.0,0.00028499,5]
[312601067,1706056243121,-119.19989347,0.000285,7]
[312601068,1706056243133,-2426.7782474,0.000285,7]
[312601069,1706056243146,-1048.25955808,0.000285,7]
[312601075,1706056243192,-6605.43043179,0.000285,7]
[312601404,1706056246358,-1000.0,0.00027877,4]
[312601407,1706056246367,-500.0,0.00027878,2]
[312601409,1706056246376,-500.0,0.00027878,2]
[312601410,1706056246385,-500.0,0.00027878,2]
[312601411,1706056246395,-500.0,0.00027878,2]
[312601412,1706056246405,-500.0,0.00027878,2]
[312601413,1706056246414,-500.0,0.00027878,2]
[312601414,1706056246423,-500.0,0.00027878,2]
[312601415,1706056246432,-500.0,0.00027878,2]
[312601416,1706056246441,-500.0,0.00027878,2]
[312601417,1706056246451,-2025.36336016,0.00028499,2]
[312601423,1706056246531,-426.0,0.0002465,2]
[312601425,1706056246540,-314.34487901,0.00027878,2]
[312601621,1706057193896,203.0,0.00020529,2]
[312601647,1706057434510,-2961.7308,0.000214,2]
[312601649,1706057434520,-1000.0,0.00021428,2]
[312601651,1706057434530,-155.36928119,0.00021429,2]
[312601653,1706057434538,-2318.0,0.000215,2]
[312601655,1706057434548,-5000.0,0.000225,2]
[312601656,1706057434558,-150.0,0.00022594,2]
[312601657,1706057434579,-155.36928115,0.00022595,2]
[312601658,1706057434590,-150.0,0.00022767,2]
[312601659,1706057434600,-1143.2310092,0.000228,3]
[312601660,1706057434609,-34114.495,0.000228,2]
[312601661,1706057434618,-313.74,0.000228,2]
[312601662,1706057434631,-1024.34,0.00023,2]
[312601663,1706057434640,-999.99,0.00023,2]
[312601664,1706057434650,-5000.0,0.00023,2]
[312601665,1706057434660,-19147.06786109,0.00023,2]
[312601666,1706057434671,-237.52,0.00023,2]
[312601667,1706057434680,-2719.26,0.00023658,2]
[312601668,1706057434689,-499.99,0.00023658,2]
[312601669,1706057434699,-656.6405892,0.00023681,2]
[312601670,1706057434708,-155.36928115,0.0002376,2]
[312601671,1706057434718,-201.31020997,0.00024,2]
[312601672,1706057434727,-354.27,0.00024141,2]
[312601673,1706057434737,-789.26631519,0.000243,2]
[312601674,1706057434746,-3314.0,0.000244,2]
[312601675,1706057434757,-19995.0,0.000244,2]
[312601676,1706057434767,-1233.0,0.0002465,2]
[312601677,1706057434777,-1200.485,0.0002465,2]
[312601678,1706057434786,-426.0,0.0002465,2]
[312601679,1706057434795,-748.853,0.0002465,2]
[312601680,1706057434804,-736.322,0.0002465,2]
[312601681,1706057434813,-16325.95,0.0002465,2]
[312601682,1706057434822,-1440.0,0.00024658,2]
[312601683,1706057434831,-250.0,0.00024784,2]
[312601684,1706057434840,-843.84,0.00024799,2]
[312601685,1706057434849,-250.0,0.00024824,2]
[312601686,1706057434858,-210.0,0.00024853,2]
[312601687,1706057434868,-472.61,0.00024892,2]
[312601688,1706057434877,-203.0,0.00024915,8]
[312601689,1706057434887,-155.36928115,0.00024926,2]
[312601690,1706057434897,-1858.83,0.00024987,2]
[312601691,1706057434906,-434.16424201,0.00025,2]
[312601692,1706057434915,-167.53295169,0.00025,2]
[312601693,1706057434925,-1585.52059264,0.00025,2]
[312601694,1706057434934,-303.74458375,0.00025,2]
[312601695,1706057434943,-934.50089976,0.00025,2]
[312601696,1706057434953,-202.21011162,0.00025488,2]
[312601697,1706057434962,-176.94,0.00025491,2]
[312601698,1706057434972,-208.156448,0.00025544,2]
[312601699,1706057434981,-156.16,0.00025774,2]
[312601700,1706057434990,-1000.0,0.000259,2]
[312601701,1706057435000,-155.36928115,0.00026091,2]
[312601702,1706057435009,-354.27,0.00026405,2]
[312601703,1706057435019,-2780.0,0.000265,2]
[312601704,1706057435029,-25131.51,0.00026575,2]
[312601705,1706057435039,-423.55,0.00026575,2]
[312601706,1706057435048,-1000.0,0.00026575,2]
[312601707,1706057435059,-1858.83,0.00026631,2]
[312601708,1706057435068,-5000.0,0.00027,3]
[312601709,1706057435079,-155.0,0.00027,2]
[312601710,1706057435089,-167.0,0.00027009,2]
[312601711,1706057435099,-163.44,0.00027203,2]
[312601712,1706057435109,-155.36928115,0.00027257,2]
[312601713,1706057435119,-1002.56675591,0.0002732,2]
[312601714,1706057435131,-1947.49601127,0.00027358,2]
[312601715,1706057435142,-418.31655925,0.00027358,2]
[312601716,1706057435152,-155.0,0.00027397,2]
[312601717,1706057435163,-200.0,0.00027397,2]
[312601718,1706057435173,-4546.92,0.00027397,2]
[312601719,1706057435183,-2931.60401015,0.00027554,6]
[312601720,1706057435193,-300.0,0.00027554,2]
[312601721,1706057435207,-300.0,0.00027554,2]